fUST/lending_fUST_20260308
["ID","MTS","AMOUNT","RATE_DAILY","PERIOD"]
[407918002,1772913102396,-500.0,0.00036734,120]
[407918003,1772913102452,-543.52,0.00036734,120]
[407918004,1772913102510,-500.0,0.00036734,120]
[407918005,1772913102568,-500.0,0.00036734,120]
[407918006,1772913102620,-500.0,0.00036734,120]
[407918007,1772913102671,-500.0,0.00036734,120]
[407918008,1772913102722,-500.0,0.00036734,120]
[407918009,1772913102772,-500.0,0.00036734,120]
[407918010,1772913102821,-500.0,0.00036734,120]
[407918011,1772913102871,-500.0,0.00036734,120]
[407918012,1772913102918,-621.66,0.00036734,120]
[407918013,1772913102967,-500.0,0.00036734,120]
[407918014,1772913103018,-500.0,0.00036734,120]
[407918015,1772913103067,-303.05,0.00036734,120]
[407918016,1772913103118,-500.0,0.00036734,120]
[407918017,1772913103168,-500.0,0.00036734,120]
[407918018,1772913103216,-308.32,0.00036734,120]
[407918019,1772913103265,-551.53258521,0.00036734,120]
[407918020,1772913103320,-509.45093013,0.00036734,120]
[407918021,1772913103377,-500.0,0.00036734,120]
[407918022,1772913103430,-482.78,0.00036734,120]
[407918023,1772913103484,-609.36,0.00036734,120]
[407918024,1772913103541,-500.0,0.00036734,120]
[407918025,1772913103600,-593.18,0.00036734,120]
[407918026,1772913103656,-500.0,0.00036734,120]
[407918027,1772913103711,-500.0,0.00036734,120]
[407918028,1772913103765,-500.0,0.00036734,120]
[407918029,1772913103819,-500.0,0.00036734,120]
[407918030,1772913103873,-500.0,0.00036734,120]
[407918031,1772913103922,-491.28,0.00036734,120]
[407918032,1772913103971,-500.0,0.00036734,120]
[407918033,1772913104020,-235.18,0.00036734,120]
[407918034,1772913104071,-500.0,0.00036734,120]
[407918035,1772913104123,-500.0,0.00036734,120]
[407918036,1772913104175,-500.0,0.00036734,120]
[407918037,1772913104224,-500.0,0.00036734,120]
[407918038,1772913104280,-562.7,0.00036734,120]
[407918039,1772913104342,-500.0,0.00036734,120]
[407918040,1772913104406,-500.0,0.00036734,120]
[407918041,1772913104470,-202.16,0.00036734,120]
[407918042,1772913104534,-500.0,0.00036734,120]
[407918043,1772913104598,-487.09,0.00036734,120]
[407918044,1772913104659,-515.94,0.00036734,120]
[407918045,1772913104713,-500.0,0.00036734,120]
[407918046,1772913104761,-500.0,0.00036734,120]
[407918047,1772913104813,-500.0,0.00036734,120]
[407918048,1772913104868,-500.0,0.00036734,30]
[407918049,1772913104925,-500.0,0.00036734,30]
[407918050,1772913104982,-500.0,0.00036734,120]
[407918051,1772913105041,-500.0,0.00036734,120]
[407918052,1772913105102,-500.0,0.00036734,120]
[407918053,1772913105168,-500.0,0.00036734,120]
[407918054,1772913105232,-500.0,0.00036734,120]
[407918055,1772913105298,-500.0,0.00036734,120]
[407918056,1772913105628,-500.0,0.00036734,120]
[407918057,1772913105687,-500.0,0.00036734,120]
[407918058,1772913105743,-500.0,0.00036734,120]
[407918059,1772913105795,-500.0,0.00036734,120]
[407918060,1772913105845,-500.0,0.00036734,120]
[407918061,1772913105894,-500.0,0.00036734,120]
[407918062,1772913105941,-500.0,0.00036734,120]
[407918063,1772913105991,-410.01,0.00036734,120]
[407918064,1772913106045,-500.0,0.00036734,120]
[407918065,1772913106103,-500.0,0.00036734,120]
[407918066,1772913106180,-275.64,0.00036734,120]
[407918067,1772913106242,-500.0,0.00036734,120]
[407918068,1772913106305,-500.0,0.00036734,120]
[407918069,1772913106370,-500.0,0.00036734,120]
[407918070,1772913106432,-514.42,0.00036734,120]
[407918071,1772913106490,-500.0,0.00036734,120]
[407918072,1772913106549,-500.0,0.00036734,120]
[407918073,1772913106605,-586.66,0.00036734,120]
[407918074,1772913106663,-500.0,0.00036734,120]
[407918075,1772913106715,-500.0,0.00036734,120]
[407918076,1772913106769,-500.0,0.00036734,120]
[407918077,1772913106825,-500.0,0.00036734,120]
[407918078,1772913106883,-500.0,0.00036734,120]
[407918079,1772913106936,-520.3,0.00036734,120]
[407918080,1772913106984,-500.0,0.00036734,120]
[407918081,1772913107032,-500.0,0.00036734,120]
[407918082,1772913107082,-500.0,0.00036734,120]
[407918083,1772913107143,-315.05,0.00036734,120]
[407918084,1772913107206,-305.09154423,0.00036734,120]
[407918085,1772913107268,-500.0,0.00036734,120]
[407918086,1772913107332,-221.1,0.00036734,120]
[407918087,1772913107399,-500.0,0.00036734,120]
[407918088,1772913107466,-500.0,0.00036734,120]
[407918089,1772913107532,-233.65,0.00036734,120]
[407918090,1772913107597,-500.0,0.00036734,120]
[407918091,1772913107664,-500.0,0.00036734,120]
[407918092,1772913107732,-500.0,0.00036734,120]
[407918093,1772913107801,-572.3,0.00036734,120]
[407918094,1772913107857,-500.0,0.00036734,120]
[407918095,1772913107910,-500.0,0.00036734,120]
[407918096,1772913107962,-500.0,0.00036734,120]
[407918097,1772913108016,-500.0,0.00036734,120]
[407918098,1772913108068,-536.67,0.00036734,120]
[407918099,1772913108123,-500.0,0.00036734,120]
[407918100,1772913108179,-500.0,0.00036734,120]
[407918101,1772913108232,-500.0,0.00036734,120]
[407918102,1772913108289,-500.0,0.00036734,120]
[407918103,1772913108350,-362.6,0.00036734,120]
[407918104,1772913108408,-500.0,0.00036734,120]
[407918105,1772913108465,-500.0,0.00036734,120]
[407918106,1772913108524,-292.86638895,0.00036734,120]
[407918107,1772913108582,-500.0,0.00036734,120]
[407918108,1772913108639,-500.0,0.00036734,120]
[407918109,1772913108697,-500.0,0.00036734,120]
[407918110,1772913108752,-438.44,0.00036734,120]
[407918111,1772913108804,-500.0,0.00036734,120]
[407918112,1772913108857,-500.0,0.00036734,120]
[407918113,1772913108910,-500.0,0.00036734,120]
[407918114,1772913108966,-307.38,0.00036734,120]
[407918115,1772913109017,-636.28,0.00036734,120]
[407918116,1772913109067,-500.0,0.00036734,120]
[407918117,1772913109123,-547.89,0.00036734,120]
[407918118,1772913109181,-500.0,0.00036734,120]
[407918119,1772913109241,-500.0,0.00036734,120]
[407918120,1772913109303,-336.45,0.00036734,120]
[407918121,1772913109360,-642.16,0.00036734,120]
[407918122,1772913109416,-500.0,0.00036734,120]
[407918123,1772913109474,-500.0,0.00036734,120]
[407918124,1772913109533,-500.0,0.00036734,120]
[407918125,1772913109591,-517.79,0.00036734,120]
[407918126,1772913109648,-500.0,0.00036734,120]
[407918127,1772913109703,-530.09,0.00036734,120]
[407918128,1772913109824,-500.0,0.00036734,120]
[407918129,1772913109884,-508.08,0.00036734,120]
[407918130,1772913109941,-500.0,0.00036734,120]
[407918131,1772913109995,-500.0,0.00036734,120]
[407918132,1772913110047,-478.74085099,0.00036734,120]
[407918133,1772913110100,-500.0,0.00036734,120]
[407918134,1772913110153,-500.0,0.00036734,120]
[407918135,1772913110204,-406.47,0.00036734,120]
[407918136,1772913110256,-500.0,0.00036734,120]
[407918137,1772913110310,-500.0,0.00036734,120]
[407918138,1772913110368,-500.0,0.00036734,120]
[407918139,1772913110438,-500.0,0.00036734,120]
[407918140,1772913110491,-500.0,0.00036734,120]
[407918141,1772913110543,-500.0,0.00036734,120]
[407918142,1772913110597,-500.0,0.00036734,120]
[407918143,1772913110654,-500.0,0.00036734,120]
[407918144,1772913110707,-500.0,0.00036734,120]
[407918145,1772913110760,-500.0,0.00036734,120]
[407918146,1772913110813,-500.0,0.00036734,120]
[407918147,1772913110868,-500.0,0.00036734,120]
[407918148,1772913110925,-320.37,0.00036734,120]
[407918149,1772913110977,-586.52,0.00036734,120]
[407918150,1772913111025,-500.0,0.00036734,120]
[407918151,1772913111073,-500.0,0.00036734,120]
[407918152,1772913111126,-244.98,0.00036734,120]
[407918153,1772913111184,-500.0,0.00036734,120]
[407918154,1772913111244,-500.0,0.00036734,120]
[407918155,1772913111303,-500.0,0.00036734,120]
[407918156,1772913111364,-500.0,0.00036734,120]
[407918157,1772913111425,-429.61,0.00036734,120]
[407918158,1772913111484,-500.0,0.00036734,120]
[407918159,1772913111546,-500.0,0.00036734,120]
[407918160,1772913111608,-579.25,0.00036734,120]
[407918161,1772913111671,-500.0,0.00036734,120]
[407918162,1772913111726,-500.0,0.00036734,120]
[407918163,1772913111778,-317.59,0.00036734,120]
[407918164,1772913111833,-500.0,0.00036734,120]
[407918165,1772913111884,-500.0,0.00036734,120]
[407918166,1772913111936,-500.0,0.00036734,120]
[407918167,1772913111989,-500.0,0.00036734,120]
[407918168,1772913112039,-272.41,0.00036734,120]
[407918169,1772913112100,-500.0,0.00036734,120]
[407918170,1772913112164,-500.0,0.00036734,120]
[407918171,1772913112226,-500.0,0.00036734,120]
[407918172,1772913112285,-500.0,0.00036734,120]
[407918173,1772913112348,-185.9,0.00036734,120]
[407918174,1772913112410,-500.0,0.00036734,120]
[407918175,1772913112472,-500.0,0.00036734,120]
[407918176,1772913112533,-500.0,0.00036734,120]
[407918177,1772913112592,-500.0,0.00036734,120]
[407918178,1772913112651,-500.0,0.00036734,120]
[407918179,1772913112707,-500.0,0.00036734,120]
[407918180,1772913112761,-500.0,0.00036734,120]
[407918181,1772913112813,-500.0,0.00036734,120]
[407918182,1772913112863,-500.0,0.00036734,120]
[407918183,1772913112918,-468.8,0.00036734,120]
[407918184,1772913112968,-500.0,0.00036734,120]
[407918185,1772913113024,-500.0,0.00036734,120]
[407918186,1772913113079,-329.1,0.00036734,120]
[407918187,1772913113136,-573.64,0.00036734,120]
[407918188,1772913113197,-500.0,0.00036734,120]
[407918189,1772913113252,-500.0,0.00036734,120]
[407918190,1772913113310,-500.0,0.00036734,120]
[407918191,1772913113368,-500.0,0.00036734,120]
[407918192,1772913113432,-550.08,0.00036734,120]
[407918193,1772913113496,-500.0,0.00036734,120]
[407918194,1772913113560,-500.0,0.00036734,120]
[407918195,1772913113617,-500.0,0.00036734,120]
[407918196,1772913113673,-500.0,0.00036734,120]
[407918197,1772913113726,-231.54,0.00036734,120]
[407918198,1772913113777,-500.0,0.00036734,120]
[407918199,1772913113836,-500.0,0.00036734,120]
[407918200,1772913113897,-479.23,0.00036734,120]
[407918201,1772913113951,-500.0,0.00036734,120]
[407918202,1772913114009,-500.0,0.00036734,120]
[407918203,1772913114062,-500.0,0.00036734,120]
[407918204,1772913114119,-500.0,0.00036734,120]
[407918205,1772913114176,-500.0,0.00036734,120]
[407918206,1772913114236,-395.88,0.00036734,120]
[407918207,1772913114296,-500.0,0.00036734,120]
[407918208,1772913114357,-500.0,0.00036734,120]
[407918209,1772913114419,-500.0,0.00036734,120]
[407918210,1772913114482,-154.03,0.00036734,120]
[407918211,1772913114540,-500.0,0.00036734,120]
[407918212,1772913114596,-500.0,0.00036734,120]
[407918213,1772913114653,-500.0,0.00036734,120]
[407918214,1772913114707,-491.99,0.00036734,120]
[407918215,1772913114760,-569.55,0.00036734,120]
[407918216,1772913114814,-500.0,0.00036734,120]
[407918217,1772913114862,-221.87,0.00036734,120]
[407918218,1772913114914,-500.0,0.00036734,120]
[407918219,1772913114966,-500.0,0.00036734,120]
[407918220,1772913115019,-500.0,0.00036734,120]
[407918221,1772913115078,-256.69,0.00036734,120]
[407918222,1772913115135,-500.0,0.00036734,120]
[407918223,1772913115188,-337.41,0.00036734,120]
[407918224,1772913115238,-500.0,0.00036734,120]
[407918225,1772913115286,-500.0,0.00036734,120]
[407918226,1772913115334,-500.0,0.00036734,30]
[407918227,1772913115385,-500.0,0.00036734,120]
[407918228,1772913115438,-596.25697284,0.00036734,120]
[407918229,1772913115496,-500.0,0.00036734,120]
[407918230,1772913115556,-500.0,0.00036734,120]
[407918231,1772913115618,-598.84215952,0.00036734,120]
[407918232,1772913115676,-500.0,0.00036734,120]
[407918233,1772913115954,-500.0,0.00036734,120]
[407918234,1772913116012,-480.1,0.00036734,120]
[407918235,1772913116068,-563.81938613,0.00036734,120]
[407918236,1772913116125,-500.0,0.00036734,120]
[407918237,1772913116179,-500.0,0.00036734,120]
[407918238,1772913116232,-500.0,0.00036734,120]
[407918239,1772913116291,-347.54,0.00036734,120]
[407918240,1772913116357,-500.0,0.00036734,120]
[407918241,1772913116419,-500.0,0.00036734,120]
[407918242,1772913116481,-500.0,0.00036734,120]
[407918243,1772913116541,-500.0,0.00036734,120]
[407918244,1772913116596,-500.0,0.00036734,120]
[407918245,1772913116654,-500.0,0.00036734,120]
[407918246,1772913116704,-500.0,0.00036734,120]
[407918247,1772913116753,-500.0,0.00036734,120]
[407918248,1772913116800,-500.0,0.00036734,120]
[407918249,1772913116848,-429.01,0.00036734,120]
[407918250,1772913116895,-500.0,0.00036734,120]
[407918251,1772913116942,-500.0,0.00036734,120]
[407918252,1772913116991,-500.0,0.00036734,120]
[407918253,1772913117043,-500.0,0.00036734,120]
[407918254,1772913117094,-500.0,0.00036734,120]
[407918255,1772913117146,-500.0,0.00036734,120]
[407918256,1772913117196,-500.0,0.00036734,120]
[407918257,1772913117245,-643.73,0.00036734,120]
[407918258,1772913117296,-500.0,0.00036734,120]
[407918259,1772913117352,-500.0,0.00036734,120]
[407918260,1772913117405,-500.0,0.00036734,120]
[407918261,1772913117455,-588.14,0.00036734,120]
[407918262,1772913117504,-500.0,0.00036734,120]
[407918263,1772913117554,-500.0,0.00036734,120]
[407918264,1772913117602,-500.0,0.00036734,120]
[407918265,1772913117655,-500.0,0.00036734,120]
[407918266,1772913117702,-632.49,0.00036734,120]
[407918267,1772913117747,-500.0,0.00036734,120]
[407918268,1772913117794,-500.0,0.00036734,120]
[407918269,1772913117838,-513.96,0.00036734,120]
[407918270,1772913117883,-538.26,0.00036734,120]
[407918271,1772913117929,-500.0,0.00036734,120]
[407918272,1772913117977,-500.0,0.00036734,120]
[407918273,1772913118023,-387.23,0.00036734,120]
[407918274,1772913118075,-500.0,0.00036734,120]
[407918275,1772913118130,-500.0,0.00036734,120]
[407918276,1772913118191,-500.0,0.00036734,120]
[407918277,1772913118258,-500.0,0.00036734,120]
[407918278,1772913118328,-464.03,0.00036734,120]
[407918279,1772913118397,-500.0,0.00036734,120]
[407918280,1772913118467,-500.0,0.00036734,120]
[407918281,1772913118535,-530.21739476,0.00036734,120]
[407918282,1772913118604,-500.0,0.00036734,120]
[407918283,1772913118677,-500.0,0.00036734,120]
[407918284,1772913118745,-500.0,0.00036734,120]
[407918285,1772913118813,-500.0,0.00036734,120]
[407918286,1772913118882,-500.0,0.00036734,120]
[407918287,1772913118952,-500.0,0.00036734,120]
[407918288,1772913119024,-538.17,0.00036734,120]
[407918289,1772913119096,-500.0,0.00036734,120]
[407918290,1772913119167,-500.0,0.00036734,120]
[407918291,1772913119238,-500.0,0.00036734,120]
[407918292,1772913119312,-500.0,0.00036734,120]
[407918293,1772913119386,-500.0,0.00036734,120]
[407918294,1772913119461,-500.0,0.00036734,120]
[407918295,1772913119537,-641.52,0.00036734,120]
[407918296,1772913119617,-500.0,0.00036734,120]
[407918297,1772913119692,-500.0,0.00036734,120]
[407918298,1772913119767,-10000.0,0.00036734,120]
[407918299,1772913119843,-500.0,0.00036734,120]
[407918300,1772913119919,-500.0,0.00036734,120]
[407918301,1772913119994,-500.0,0.00036734,120]
[407918302,1772913120071,-500.0,0.00036734,120]
[407918303,1772913120150,-500.0,0.00036734,120]
[407918304,1772913120226,-150.71351595,0.00036734,120]
[407918305,1772913120305,-708.33,0.00036734,120]
[407918306,1772913120389,-708.33,0.00036734,120]
[407918307,1772913120468,-708.33,0.00036734,120]
[407918308,1772913120550,-708.33,0.00036734,120]
[407918309,1772913120629,-708.33,0.00036734,120]
[407918310,1772913120707,-708.33,0.00036734,120]
[407918311,1772913120786,-708.33,0.00036734,120]
[407918312,1772913120875,-708.33,0.00036734,120]
[407918313,1772913120953,-708.33,0.00036734,120]
[407918314,1772913121030,-708.33,0.00036734,120]
[407918315,1772913121109,-708.33,0.00036734,120]
[407918316,1772913121188,-708.33,0.00036734,120]
[407918317,1772913121272,-708.33,0.00036734,120]
[407918318,1772913121355,-708.33,0.00036734,120]
[407918319,1772913121440,-708.33,0.00036734,120]
[407918320,1772913121540,-708.33,0.00036734,120]
[407918321,1772913121622,-708.33,0.00036734,120]
[407918322,1772913121935,-708.33,0.00036734,120]
[407918323,1772913122076,-708.33,0.00036734,120]
[407918324,1772913122157,-708.33,0.00036734,120]
[407918325,1772913122239,-708.33,0.00036734,120]
[407918326,1772913122321,-708.33,0.00036734,120]
[407918327,1772913122402,-708.33,0.00036734,120]
[407918328,1772913122481,-708.41,0.00036734,120]
[407918329,1772913122558,-178213.520264,0.00036734,120]
[407918330,1772913122635,-500.0,0.00036734,120]
[407918331,1772913122726,-500.0,0.00036734,120]
[407918332,1772913122806,-500.0,0.00036734,120]
[407918333,1772913122880,-500.0,0.00036734,120]
[407918334,1772913122969,-500.0,0.00036734,120]
[407918335,1772913123056,-500.0,0.00036734,120]
[407918336,1772913123135,-500.0,0.00036734,120]
[407918337,1772913123222,-504.99,0.00036734,120]
[407918338,1772913123310,-390.0,0.00036734,120]
[407918339,1772913123393,-26544.09713753,0.00036734,120]
[407918340,1772913123465,-1661.93015548,0.00036734,120]
[407918341,1772913123537,-282.95963274,0.00036734,120]
[407918342,1772913123609,-3701.0,0.00036734,120]
[407918343,1772913123694,-259.21945792,0.00036734,120]
[407918344,1772913123766,-205.74882142,0.00036734,120]
[407918345,1772913123838,-210.17610459,0.00036734,120]
[407918346,1772913123916,-391.48936079,0.00036734,120]
[407918347,1772913123985,-1451621.0934,0.00036734,30]
[407918348,1772913124055,-150.55965525,0.00036734,120]
[407918349,1772913124128,-178.13502472,0.00036734,120]
[407918350,1772913124196,-2534.36,0.00036734,120]
[407918351,1772913124265,-2534.36,0.00036734,120]
[407918352,1772913124334,-2534.36,0.00036734,120]
[407918353,1772913124404,-2534.36,0.00036734,120]
[407918354,1772913124473,-2534.36,0.00036734,120]
[407918355,1772913124543,-2534.36,0.00036734,120]
[407918356,1772913124614,-2534.36,0.00036734,120]
[407918357,1772913124682,-2534.36,0.00036734,120]
[407918358,1772913124746,-2534.36,0.00036734,120]
[407918359,1772913124808,-2534.36,0.00036734,120]
[407918360,1772913124872,-2534.36,0.00036734,120]
[407918361,1772913124936,-2534.36,0.00036734,120]
[407918362,1772913124997,-2534.36,0.00036734,120]
[407918363,1772913125064,-2534.36,0.00036734,120]
[407918364,1772913125138,-2534.36,0.00036734,120]
[407918365,1772913125211,-2534.36,0.00036734,120]
[407918366,1772913125281,-2534.36,0.00036734,120]
[407918367,1772913125350,-2534.36,0.00036734,120]
[407918368,1772913125418,-2534.36,0.00036734,120]
[407918369,1772913125490,-2534.36,0.00036734,120]
[407918370,1772913125561,-2534.36,0.00036734,120]
[407918371,1772913125630,-2534.36,0.00036734,120]
[407918372,1772913125701,-2534.36,0.00036734,120]
[407918373,1772913125769,-2534.37723798,0.00036734,120]
[407918374,1772913125836,-234.668,0.00036734,120]
[407918375,1772913125904,-181.45255,0.00036734,60]
[407918376,1772913125970,-13102.55151638,0.00036734,30]
[407918377,1772913126041,-500.0,0.00036734,120]
[407918378,1772913126109,-500.0,0.00036734,120]
[407918379,1772913126179,-500.0,0.00036734,120]
[407918380,1772913126250,-489.7286854,0.00036734,120]
[407918381,1772913126319,-362.2531436,0.00036734,120]
[407918382,1772913126386,-500.0,0.00036734,120]
[407918383,1772913126453,-276.42421569,0.00036734,120]
[407918384,1772913126519,-256.10197091,0.00036734,30]
[407918385,1772913126586,-501.42808653,0.00036734,120]
[407918386,1772913126651,-501.37718927,0.00036734,120]
[407918387,1772913126716,-501.15360772,0.00036734,120]
[407918388,1772913126781,-3039.51637906,0.00036734,120]
[407918389,1772913126847,-528.67330778,0.00036734,120]
[407918390,1772913126911,-501.13923016,0.00036734,120]
[407918391,1772913126974,-501.33374943,0.00036734,120]
[407918392,1772913127040,-501.38732207,0.00036734,120]
[407918393,1772913127111,-503.56301057,0.00036734,120]
[407918394,1772913127246,-501.0781768,0.00036734,120]
[407918395,1772913127314,-500.97019031,0.00036734,120]
[407918396,1772913127381,-500.0,0.00036734,120]
[407918397,1772913127446,-500.0,0.00036734,120]
[407918398,1772913127516,-433.63838191,0.00036734,120]
[407918399,1772913127590,-500.0,0.00036734,120]
[407918400,1772913127656,-193.17381259,0.00036734,120]
[407918401,1772913127719,-500.56054466,0.00036734,120]
[407918402,1772913127781,-502.81844905,0.00036734,120]
[407918403,1772913127841,-500.87249943,0.00036734,120]
[407918404,1772913127904,-500.0,0.00036734,120]
[407918405,1772913127967,-361.35712283,0.00036734,120]
[407918406,1772913128029,-500.0,0.00036734,120]
[407918407,1772913128093,-607.01899392,0.00036734,120]
[407918408,1772913128157,-501.82413963,0.00036734,120]
[407918409,1772913128219,-501.88907686,0.00036734,120]
[407918410,1772913128283,-547.55348223,0.00036734,120]
[407918411,1772913128346,-500.0,0.00036734,120]
[407918412,1772913128409,-226.61772023,0.00036734,120]
[407918413,1772913128471,-500.0,0.00036734,120]
[407918414,1772913128536,-502.06922005,0.00036734,120]
[407918415,1772913128600,-304.82951405,0.00036734,120]
[407918416,1772913128668,-501.07038024,0.00036734,120]
[407918417,1772913128727,-500.85862123,0.00036734,120]
[407918418,1772913128788,-500.56319291,0.00036734,30]
[407918419,1772913128846,-500.49558793,0.00036734,120]
[407918420,1772913128903,-501.10508832,0.00036734,120]
[407918421,1772913128960,-500.0,0.00036734,120]
[407918422,1772913129018,-500.0,0.00036734,120]
[407918423,1772913129078,-500.0,0.00036734,120]
[407918424,1772913129138,-500.0,0.00036734,120]
[407918425,1772913129199,-533.87,0.00036734,120]
[407918426,1772913129259,-501.92485075,0.00036734,120]
[407918427,1772913129322,-500.0,0.00036734,120]
[407918428,1772913129390,-393.02385308,0.00036734,120]
[407918429,1772913129456,-500.0,0.00036734,120]
[407918430,1772913129519,-500.0,0.00036734,120]
[407918431,1772913129582,-500.0,0.00036734,120]
[407918432,1772913129647,-553.91185832,0.00036734,120]
[407918433,1772913129710,-500.0,0.00036734,120]
[407918434,1772913129774,-314.38246389,0.00036734,120]
[407918435,1772913129840,-500.0,0.00036734,120]
[407918436,1772913129904,-470.36068762,0.00036734,120]
[407918437,1772913129966,-500.84430628,0.00036734,120]
[407918438,1772913130030,-500.0,0.00036734,120]
[407918439,1772913130092,-500.0,0.00036734,120]
[407918440,1772913130158,-226.48473485,0.00036734,120]
[407918441,1772913130229,-501.14849809,0.00036734,120]
[407918442,1772913130298,-501.20944234,0.00036734,120]
[407918443,1772913130364,-501.21954059,0.00036734,120]
[407918444,1772913130429,-501.91445326,0.00036734,120]
[407918445,1772913130492,-500.27750367,0.00036734,120]
[407918446,1772913130557,-501.60361,0.00036734,120]
[407918447,1772913130623,-500.92119072,0.00036734,120]
[407918448,1772913130686,-505.28936567,0.00036734,120]
[407918449,1772913130744,-501.3593635,0.00036734,120]
[407918450,1772913130801,-222.47906869,0.00036734,120]
[407918451,1772913130858,-501.34039575,0.00036734,120]
[407918452,1772913130917,-500.74003887,0.00036734,120]
[407918453,1772913130976,-501.22154746,0.00036734,120]
[407918454,1772913131034,-501.65480854,0.00036734,120]
[407918455,1772913131091,-501.84066752,0.00036734,120]
[407918456,1772913131149,-502.15449937,0.00036734,120]
[407918457,1772913131207,-500.0,0.00036734,120]
[407918458,1772913131266,-231.77279136,0.00036734,120]
[407918459,1772913131326,-501.46340652,0.00036734,120]
[407918460,1772913131384,-500.0,0.00036734,120]
[407918461,1772913131441,-348.81886917,0.00036734,120]
[407918462,1772913131504,-500.0,0.00036734,120]
[407918463,1772913131566,-336.40103527,0.00036734,120]
[407918464,1772913131627,-501.11442554,0.00036734,120]
[407918465,1772913131685,-553.93496073,0.00036734,120]
[407918466,1772913131743,-501.09041691,0.00036734,120]
[407918467,1772913131800,-500.0,0.00036734,120]
[407918468,1772913131857,-500.0,0.00036734,120]
[407918469,1772913131913,-500.0,0.00036734,120]
[407918470,1772913131968,-413.27422015,0.00036734,120]
[407918471,1772913132025,-500.95062913,0.00036734,120]
[407918472,1772913132092,-500.0,0.00036734,120]
[407918473,1772913132158,-500.0,0.00036734,120]
[407918474,1772913132221,-500.0,0.00036734,120]
[407918475,1772913132282,-472.94569362,0.00036734,120]
[407918476,1772913132346,-501.01694019,0.00036734,120]
[407918477,1772913132404,-500.72773145,0.00036734,120]
[407918478,1772913132464,-500.37120811,0.00036734,120]
[407918479,1772913132522,-501.39486005,0.00036734,120]
[407918480,1772913132582,-501.1485493,0.00036734,120]
[407918481,1772913132643,-500.85502147,0.00036734,120]
[407918482,1772913132701,-503.98246476,0.00036734,120]
[407918483,1772913132756,-500.70857549,0.00036734,120]
[407918484,1772913132810,-500.36407669,0.00036734,120]
[407918485,1772913132865,-500.76710956,0.00036734,120]
[407918486,1772913132919,-525.97429274,0.00036734,120]
[407918487,1772913132972,-500.0,0.00036734,120]
[407918488,1772913133027,-500.0,0.00036734,120]
[407918489,1772913133082,-299.32183253,0.00036734,120]
[407918490,1772913133141,-500.0,0.00036734,120]
[407918491,1772913133207,-271.08695126,0.00036734,120]
[407918492,1772913133275,-500.0,0.00036734,120]
[407918493,1772913133346,-275.5102578,0.00036734,120]
[407918494,1772913133419,-500.0,0.00036734,120]
[407918495,1772913133494,-443.03626016,0.00036734,120]
[407918496,1772913133574,-501.05531284,0.00036734,120]
[407918497,1772913133659,-287.09270926,0.00036734,120]
[407918498,1772913133729,-3045.62642144,0.00036734,120]
[407918499,1772913133927,-500.0,0.00036734,120]
[407918500,1772913134004,-500.0,0.00036734,120]
[407918501,1772913134085,-545.21712326,0.00036734,120]